Cogmind - Beta 14 @@@ ROGUE MODE // 2024.10.18 @ 19:26:23 Player: Crackrock_Steady Result: Destroyed by B-75 Beast with Heavy Plasma Cannon Performance ------------- Evolutions (4) 2000 Regions Visited (10) 2000 Robots Destroyed (68) 340 Value Destroyed (1698) 1698 Prototype IDs (2) 40 Alien Tech Used (0) 0 Bonus (308) 308 TOTAL SCORE: 6386 Bonus ------- Entered DSFs 500 Friendly Fire -192 Cogmind --------- Core Integrity 0/850 Matter 57/300 Energy 10/100 System Corruption 4% Temperature Cool (12) Movement Core (50) Location -6/Factory Parts ------- > --- POWER (1) -------- (None) > --- PROPULSION (3) --- Medium Treads > --- UTILITY (6) ------ Advanced Sensor Array Advanced Targeting Computer Cloaking Device Cloaking Device > --- WEAPON (5) ------- (None) > --- INVENTORY (5) ---- Angular Momentum Engine Advanced Targeting Computer Reaction Control System Remote Datajack Peak State ------------ > --- POWER ------------ (None) > --- PROPULSION ------- Armored Leg Armored Leg > --- UTILITY ---------- Hacking Suite Hacking Suite Hacking Suite Hacking Suite > --- WEAPON ----------- Coil Gun Coil Gun Coil Gun Heavy Machine Gun > --- INVENTORY -------- Advanced Targeting Computer Advanced Targeting Computer [Rating: 42] Favorites ----------- Power Light Deuterium Engine Engine Light Deuterium Engine Power Core Light Nuclear Core Propulsion Light Treads Treads Light Treads Leg Armored Leg Flight Unit Xenon Bombardment Thruster Utility Medium Storage Unit Device Seismic Detector Storage Medium Storage Unit Processor Targeting Computer Hackware Hacking Suite Protection Light Armor Plating Weapon Assault Rifle Energy Gun Small Laser Ballistic Gun Assault Rifle Ballistic Cannon Advanced Assault Cannon Launcher Grenade Launcher Impact Weapon Great Maul Build | -11 -10 -10 -9 -8 -8 -7 -7 -6 -6 -6 ------- Run | Yrd Mat Min Mat Mat Sto Fac DSF Fac Was Fac Slots Evolved 8 | . . . 2 2 . 2 . 2 . . Power . | . . . . . . . . . . . Propulsion 1 | . . . . . . . . 1 . . Utility 4 | . . . 1 1 . 1 . 1 . . Weapon 3 | . . . 1 1 . 1 . . . . Parts Attached 61 | 7 1 3 7 4 15 6 . 10 2 6 Power 6 | 1 . . 1 1 2 1 . . . . Engine 4 | 1 . . 1 . 1 1 . . . . Core 2 | . . . . 1 1 . . . . . Reactor . | . . . . . . . . . . . Propulsion 12 | 2 . . 4 . 1 . . 2 1 2 Treads 8 | 2 . . 4 . 1 . . . . 1 Leg 2 | . . . . . . . . 2 . . Wheel . | . . . . . . . . . . . Hover . | . . . . . . . . . . . Flight 2 | . . . . . . . . . 1 1 Utility 23 | 2 1 . 1 2 4 4 . 4 1 4 Device 8 | 1 . . . . . 3 . . 1 3 Storage 2 | 1 1 . . . . . . . . . Processor 5 | . . . . 1 2 1 . . . 1 Hackware 4 | . . . . . . . . 4 . . Protection 4 | . . . 1 1 2 . . . . . Artifact . | . . . . . . . . . . . Weapon 20 | 2 . 3 1 1 8 1 . 4 . . Energy Gun 1 | 1 . . . . . . . . . . Energy Cannon . | . . . . . . . . . . . Ballistic Gun 14 | 1 . 3 1 1 4 . . 4 . . Ballistic Cannon 3 | . . . . . 2 1 . . . . Launcher 1 | . . . . . 1 . . . . . Special Weapon . | . . . . . . . . . . . Impact Weapon 1 | . . . . . 1 . . . . . Slashing Weapon . | . . . . . . . . . . . Piercing Weapon . | . . . . . . . . . . . Special Melee Weapon . | . . . . . . . . . . . Unidentified Prototypes 2 | . . . . . . 2 . . . . Parts Lost 25 | . . . . . 19 . . 3 2 1 Power 2 | . . . . . 2 . . . . . Propulsion 6 | . . . . . 3 . . 1 1 1 Utility 6 | . . . . . 4 . . 1 1 . Weapon 11 | . . . . . 10 . . 1 . . Highest Loss Streak 6 | . . . . . 6 . . 2 4 1 To Critical Strikes 1 | . . . . . 1 . . . . . Average Slot Usage (%) 69 | . 100 100 100 100 76 38 25 48 8 19 Engine 4 | . 14 14 11 2 . 5 3 . . . Core 1 | . . . . 6 4 . . . . . Treads 10 | . 28 28 22 18 8 . . . . . Leg 1 | . . . . . . . . 10 . . Device 6 | . 14 14 11 9 . 19 12 . 1 6 Storage 6 | . 14 14 11 9 8 . . . . . Processor 5 | . . . . 9 12 5 3 . . 5 Hackware 3 | . . . . . . . . 25 5 . Protection 6 | . . . 11 9 12 . . . . . Energy Gun 1 | . 14 4 . . . . . . . . Ballistic Gun 17 | . 14 23 33 36 17 . . 11 . . Ballistic Cannon 3 | . . . . . 10 5 3 . . . Peak Build Rating 42 | 7 8 9 16 22 25 25 26 42 17 23 Average Rating 16 | 5 7 8 14 20 18 19 14 29 4 12 On Entrance 9 | . 7 8 9 16 22 2 25 1 9 . Naked Turns 136 | . . . . . 12 12 47 6 48 11 Heaviest Build 37 | 12 17 19 26 29 37 17 17 20 1 3 Greatest Support 46 | 40 40 40 46 46 46 3 3 32 8 6 Greatest Overweight (x) 8 | 1 . . . . 8 5 5 1 . . Average Overweight (x) . | . . . . . 2 2 . . . . Largest Inventory Capacity 10 | 8 10 10 10 10 10 5 5 5 5 5 Average Capacity 8 | 7 9 10 10 10 9 5 5 5 5 5 Most Carried 10 | 5 10 10 10 10 10 5 4 5 3 5 Average Carried 6 | 1 7 9 9 9 8 1 3 2 2 3 Final Capacity 10 | 8 10 10 10 10 5 5 5 5 5 5 Final Carried 10 | 1 10 10 10 10 5 . 4 2 2 4 Class Distribution -------------------- 41% | Mutant 27% | Scavenger-Tank 11% | Scavenger-Gunner 9% | Hacker-Mutant 5% | Gunner 4% | Hacker-Gunner Dominant Class ---------------- Mutant | -10/Materials Mutant | -10/Mines Scavenger-Tank | -9/Materials Scavenger-Gunner | -8/Materials Scavenger-Tank | -8/Storage Mutant | -7/Factory Mutant | -7/DSF Hacker-Mutant | -6/Factory Mutant | -6/Waste Mutant | -6/Factory Resources | -11 -10 -10 -9 -8 -8 -7 -7 -6 -6 -6 ----------- Run | Yrd Mat Min Mat Mat Sto Fac DSF Fac Was Fac Matter Collected 1991 | 283 73 6 436 276 908 . 4 5 . . Remotely . | . . . . . . . . . . . Salvage Created 2355 | 95 205 59 690 432 874 . . . . . Parts 138 | 6 17 5 40 26 44 . . . . . Haulers Intercepted 4 | . 1 . . 1 2 . . . . . Recyclers Shooed 1 | . . . . . 1 . . . . . Parts Field Recycled . | . . . . . . . . . . . Retrieved Matter . | . . . . . . . . . . . Parts Self-Destructed . | . . . . . . . . . . . Prevented . | . . . . . . . . . . . Kills | -11 -10 -10 -9 -8 -8 -7 -7 -6 -6 -6 ------- Run | Yrd Mat Min Mat Mat Sto Fac DSF Fac Was Fac Combat Hostiles Destroyed 45 | . 5 1 12 7 20 . . . . . Melee 2 | . . . . . 2 . . . . . Guns 35 | . 5 1 12 7 10 . . . . . Cannons 7 | . . . . . 7 . . . . . AOE 1 | . . . . . 1 . . . . . Classes Destroyed 12 | 2 5 1 2 . 2 . . . . . Worker 6 | . . . 3 . 3 . . . . . Builder 3 | . 1 . 2 . . . . . . . Tunneler 1 | 1 . . . . . . . . . . Hauler 4 | . 1 . . 1 2 . . . . . Recycler 3 | 1 . . 1 . 1 . . . . . Mechanic 1 | . . . . . 1 . . . . . Watcher 4 | . 1 . 1 1 1 . . . . . Swarmer 12 | . 3 . 3 . 6 . . . . . Grunt 20 | . 2 . 6 6 6 . . . . . Brawler 1 | . . . . . 1 . . . . . Duelist 2 | . . . 1 . 1 . . . . . Sentry 10 | . . 1 2 1 6 . . . . . Thug 1 | . . . . . 1 . . . . . Best Kill Streak 9 | 2 5 1 9 3 9 . . . . . Combat Bots Only 6 | . 3 1 4 3 6 . . . . . Max Kills in Single Turn 2 | 1 1 1 2 1 2 . . . . . Gunslinging . | . . . . . . . . . . . Exploded 1 | . . . . . 1 . . . . . Melee 1 | . . . . . 1 . . . . . Uniques/NPCs Destroyed . | . . . . . . . . . . . Combat | -11 -10 -10 -9 -8 -8 -7 -7 -6 -6 -6 -------- Run | Yrd Mat Min Mat Mat Sto Fac DSF Fac Was Fac Hostile Shots Fired 528 | . 34 4 41 27 188 . 26 167 3 38 Missed 203 | . 11 3 15 8 46 . 13 88 . 19 Damage Taken 5182 | . 243 13 325 284 2184 . 341 1259 122 411 Core 1804 | . 44 . 109 44 456 . 276 438 122 315 Absorbed by Shields . | . . . . . . . . . . . Core Remaining (%) 64 | 100 . 82 72 . 9 . 60 . . . Volleys Fired 147 | 5 21 2 40 18 59 . . 2 . . Largest 4 | 2 2 2 3 4 4 . . 1 . . Hottest 136 | 60 60 60 63 86 136 . . 30 . . Shots Fired 462 | 10 42 4 120 72 211 . . 3 . . Gun 401 | 10 42 4 120 72 150 . . 3 . . Cannon 58 | . . . . . 58 . . . . . Launcher 3 | . . . . . 3 . . . . . Special . | . . . . . . . . . . . Kinetic 431 | 5 21 2 120 72 208 . . 3 . . Thermal 28 | 5 21 2 . . . . . . . . Explosive 3 | . . . . . 3 . . . . . Electromagnetic . | . . . . . . . . . . . Robot Hit Streak 23 | 7 12 2 8 10 23 . . 3 . . Robot Miss Streak 7 | 1 4 1 5 1 7 . . . . . Penetration Max . | . . . . . . . . . . . Secondary Targets 8 | . 1 . 3 2 2 . . . . . Max Gunslinging Chain 1 | . 1 . 1 1 1 . . . . . Shots Hit Robots 281 | 7 24 2 66 46 134 . . 2 . . Core Hits 125 | 3 12 2 29 24 55 . . . . . Critical Kills 2 | . . . 1 . 1 . . . . . Critical Parts Destroyed 3 | . . . 1 . 2 . . . . . Critical Strikes 9 | . . . 2 . 7 . . . . . Destroy 4 | . . . 2 . 2 . . . . . Blast 4 | . . . . . 4 . . . . . Smash 1 | . . . . . 1 . . . . . Melee Attacks 5 | . . . . . 5 . . . . . Impact 5 | . . . . . 5 . . . . . Slashing . | . . . . . . . . . . . Piercing . | . . . . . . . . . . . Sneak Attacks . | . . . . . . . . . . . Combat Hostiles . | . . . . . . . . . . . Follow-up Attacks . | . . . . . . . . . . . Damage Inflicted 4728 | 95 300 30 921 627 2711 . . 44 . . Guns 3248 | 89 300 20 921 627 1248 . . 43 . . Cannons 1131 | . . . . . 1131 . . . . . Explosions 189 | . . . . . 189 . . . . . Melee 143 | . . . . . 143 . . . . . Ramming 17 | 6 . 10 . . . . . 1 . . Kinetic 4176 | 36 160 10 921 627 2379 . . 43 . . Thermal 203 | 53 140 10 . . . . . . . . Explosive 189 | . . . . . 189 . . . . . Electromagnetic . | . . . . . . . . . . . Impact 143 | . . . . . 143 . . . . . Slashing . | . . . . . . . . . . . Piercing . | . . . . . . . . . . . Highest Corruption 7 | . 3 3 . . 7 . . 4 4 4 Average Corruption 4 | . 2 3 . . 6 . . 1 4 4 Corruption Purged . | . . . . . . . . . . . Corruption Blocked . | . . . . . . . . . . . Effects 48 | . 1 3 . . 26 . . 8 . 10 Message Errors 18 | . . 1 . . 10 . . 4 . 3 Matter Fused 6 | . . . . . 3 . . . . 3 Heat Flow Errors 5 | . . 1 . . 4 . . . . . Energy Discharges 4 | . . 1 . . 2 . . . . 1 Parts Rejected 2 | . . . . . 1 . . 1 . . Parts Fused 2 | . 1 . . . 1 . . . . . Data Loss (minor) 2 | . . . . . 1 . . 1 . . Data Loss (major) 3 | . . . . . . . . 1 . 2 Misfires 3 | . . . . . 2 . . 1 . . Alerts 2 | . . . . . 1 . . . . 1 Weapon Failures 1 | . . . . . 1 . . . . . Overload Shots . | . . . . . . . . . . . Overflow Damage 41 | . . . . . 41 . . . . . Projectiles 8 | . . . . . 8 . . . . . Explosions . | . . . . . . . . . . . Melee 33 | . . . . . 33 . . . . . Knockbacks 2 | . . . . . 2 . . . . . Impact . | . . . . . . . . . . . Kinetic 2 | . . . . . 2 . . . . . Secondary . | . . . . . . . . . . . Self-Inflicted Damage 71 | . . . . . 71 . . . . . Shots 2 | . . . . . 2 . . . . . Rammed 3 | 1 . 1 . . 1 . . . . . Targets Rammed 4 | 1 . 1 . . 1 . . 1 . . Kicked 1 | . . . . . . . . 1 . . Crushed . | . . . . . . . . . . . Highest Temperature 492 | . 69 165 35 127 492 . . 285 . 4 Average Temperature 92 | . 45 89 12 41 143 . . 146 . 4 Received Heat Transfer 1981 | . 78 . 75 162 900 . . 616 . 150 Effects 14 | . . . . . 14 . . . . . Shutdowns 2 | . . . . . 2 . . . . . Energy Bleed 2 | . . . . . 2 . . . . . Interference 2 | . . . . . 2 . . . . . Matter Decay 2 | . . . . . 2 . . . . . Short Circuit 1 | . . . . . 1 . . . . . Damage (minor) 1 | . . . . . 1 . . . . . Damage (major) 4 | . . . . . 4 . . . . . Siege Activations . | . . . . . . . . . . . Robots Corrupted . | . . . . . . . . . . . Combat Hostiles . | . . . . . . . . . . . Parts Fried . | . . . . . . . . . . . Impact Corruptions 1 | . . . . . 1 . . . . . Robots Melted . | . . . . . . . . . . . Combat Hostiles . | . . . . . . . . . . . Parts Melted . | . . . . . . . . . . . Heat Transferred 475 | 125 325 25 . . . . . . . . Parts Sabotaged . | . . . . . . . . . . . Parts Stolen . | . . . . . . . . . . . Parts Stripped . | . . . . . . . . . . . Power Chain Reactions . | . . . . . . . . . . . Alert | -11 -10 -10 -9 -8 -8 -7 -7 -6 -6 -6 ------- Run | Yrd Mat Min Mat Mat Sto Fac DSF Fac Was Fac Peak Influence 395 | 10 169 100 345 299 395 95 81 106 44 42 Initial 126 | . 6 65 39 110 126 95 66 42 29 27 Average 139 | 3 48 97 168 222 259 95 68 63 35 27 Maximum Alert Level 1 | . . . 1 1 1 . . . . . Low Security (%) 67 | 100 100 100 50 33 28 100 100 100 100 100 Level 1 32 | . . . 49 66 71 . . . . . Level 2 . | . . . . . . . . . . . Level 3 . | . . . . . . . . . . . Level 4 . | . . . . . . . . . . . Level 5 . | . . . . . . . . . . . High Security . | . . . . . . . . . . . Max Security . | . . . . . . . . . . . Squads Dispatched 13 | . . . 2 1 3 1 1 4 . 1 Investigation 6 | . . . 1 . . 1 . 3 . 1 Extermination 1 | . . . . . . . . 1 . . Reinforcement 4 | . . . 1 1 1 . 1 . . . Assault 2 | . . . . . 2 . . . . . Garrison . | . . . . . . . . . . . Intercept . | . . . . . . . . . . . Searches Triggered . | . . . . . . . . . . . Construction Impeded . | . . . . . . . . . . . Haulers Reinforced . | . . . . . . . . . . . Active Scanning Responses . | . . . . . . . . . . . Cargo Convoy Interrupts . | . . . . . . . . . . . Stealth | -11 -10 -10 -9 -8 -8 -7 -7 -6 -6 -6 --------- Run | Yrd Mat Min Mat Mat Sto Fac DSF Fac Was Fac Distress Signals 5 | . 1 . 2 . . . . 1 . 1 Communications Jammed . | . . . . . . . . . . . Distress Signals . | . . . . . . . . . . . Times Spotted 112 | . 8 1 20 10 38 . 6 17 5 7 Peak Tracking Total 10 | . 4 1 6 4 10 . 5 10 5 4 Tactical Retreats 5 | . 1 . 1 . . . 1 2 . . Traps | -11 -10 -10 -9 -8 -8 -7 -7 -6 -6 -6 ------- Run | Yrd Mat Min Mat Mat Sto Fac DSF Fac Was Fac Traps Triggered 6 | . 2 . . . . . 1 3 . . Indirectly . | . . . . . . . . . . . Trap Hack Attempts . | . . . . . . . . . . . Triggered . | . . . . . . . . . . . Disarmed . | . . . . . . . . . . . Reprogrammed . | . . . . . . . . . . . Reused . | . . . . . . . . . . . Traps Extracted . | . . . . . . . . . . . Installed . | . . . . . . . . . . . Triggered . | . . . . . . . . . . . Machines | -11 -10 -10 -9 -8 -8 -7 -7 -6 -6 -6 ---------- Run | Yrd Mat Min Mat Mat Sto Fac DSF Fac Was Fac Machines Disabled . | . . . . . . . . . . . Max in Single Turn . | . . . . . . . . . . . Machines Repaired . | . . . . . . . . . . . Machines Dismantled . | . . . . . . . . . . . Machines Sabotaged . | . . . . . . . . . . . Overloaded Fab Kills . | . . . . . . . . . . . Hacking | -11 -10 -10 -9 -8 -8 -7 -7 -6 -6 -6 --------- Run | Yrd Mat Min Mat Mat Sto Fac DSF Fac Was Fac Machines Accessed 11 | . 1 . 3 . 2 2 . 2 . 1 Terminals 10 | . 1 . 2 . 2 2 . 2 . 1 Fabricators . | . . . . . . . . . . . Repair Stations . | . . . . . . . . . . . Recycling Units . | . . . . . . . . . . . Scanalyzers 1 | . . . 1 . . . . . . . Garrison Access . | . . . . . . . . . . . Total Hacks 31 | . 3 . 10 . 6 4 . 6 . 2 Successful 19 | . 2 . 5 . 3 3 . 6 . . Failed 12 | . 1 . 5 . 3 1 . . . 2 Catastrophic 4 | . . . 1 . 2 . . . . 1 Database Lockouts . | . . . . . . . . . . . Manual 16 | . 1 . 4 . 11 . . . . . Terminals 27 | . 3 . 6 . 6 4 . 6 . 2 Fabricators . | . . . . . . . . . . . Repair Stations . | . . . . . . . . . . . Recycling Units . | . . . . . . . . . . . Scanalyzers 4 | . . . 4 . . . . . . . Garrison Access . | . . . . . . . . . . . Terminal Hacks 15 | . 2 . 1 . 3 3 . 6 . . Record 8 | . 1 . . . . 2 . 5 . . Robot Analysis 4 | . . . . . 3 . . 1 . . Open DSF 1 | . . . . . . 1 . . . . Zone Layout 2 | . 1 . 1 . . . . . . . Fabricator Hacks . | . . . . . . . . . . . Repair Station Hacks . | . . . . . . . . . . . Recycling Unit Hacks . | . . . . . . . . . . . Scanalyzer 4 | . . . 4 . . . . . . . Insert Component 1 | . . . 1 . . . . . . . Analyze 3 | . . . 3 . . . . . . . Garrison Access Hacks . | . . . . . . . . . . . Unauthorized Hacks . | . . . . . . . . . . . Terminals . | . . . . . . . . . . . Fabricators . | . . . . . . . . . . . Repair Stations . | . . . . . . . . . . . Recycling Units . | . . . . . . . . . . . Scanalyzers . | . . . . . . . . . . . Garrison Access . | . . . . . . . . . . . Data Cores Recovered . | . . . . . . . . . . . Used . | . . . . . . . . . . . Hacking Detections 9 | . 1 . 3 . 1 1 . 2 . 1 Full Trace Events 9 | . 1 . 3 . 1 1 . 2 . 1 Feedback Events 1 | . . . . . . . . 1 . . Corruption 1 | . . . . . . . . 1 . . Feedback Blocked . | . . . . . . . . . . . Robot Schematics Acquired . | . . . . . . . . . . . Robots Built . | . . . . . . . . . . . Authchips . | . . . . . . . . . . . Time . | . . . . . . . . . . . Total Robot Build Rating . | . . . . . . . . . . . Part Schematics Acquired 1 | . . . 1 . . . . . . . Parts Built . | . . . . . . . . . . . Authchips . | . . . . . . . . . . . Time . | . . . . . . . . . . . Total Part Build Rating . | . . . . . . . . . . . Parts Repaired . | . . . . . . . . . . . Time . | . . . . . . . . . . . Parts Recycled . | . . . . . . . . . . . Recycled Matter . | . . . . . . . . . . . Retrieved Matter . | . . . . . . . . . . . Retrieved Components . | . . . . . . . . . . . Parts Scanalyzed 1 | . . . 1 . . . . . . . Part Schematics Acquired 1 | . . . 1 . . . . . . . Parts Damaged . | . . . . . . . . . . . Bothacking | -11 -10 -10 -9 -8 -8 -7 -7 -6 -6 -6 ------------ Run | Yrd Mat Min Mat Mat Sto Fac DSF Fac Was Fac Used RIF Installer . | . . . . . . . . . . . Robots Hacked . | . . . . . . . . . . . Non-combat . | . . . . . . . . . . . Combat . | . . . . . . . . . . . Robot Hacks Applied . | . . . . . . . . . . . Relay Couplers Released . | . . . . . . . . . . . Fabnet Peak Effective % . | . . . . . . . . . . . Robots Rewired . | . . . . . . . . . . . Allies Hacked . | . . . . . . . . . . . Hacks Repelled . | . . . . . . . . . . . Allies | -11 -10 -10 -9 -8 -8 -7 -7 -6 -6 -6 -------- Run | Yrd Mat Min Mat Mat Sto Fac DSF Fac Was Fac Total Allies 2 | . . . . . 2 . . . . . Largest Group 2 | . . . . . 2 . . . . . Highest-Rated Group 62 | . . . . . 62 . . . . . Highest-Rated Ally 31 | . . . . . 31 . . . . . Total Orders . | . . . . . . . . . . . Ally Attacks 6 | . . . . . 6 . . . . . Total Damage 84 | . . . . . 84 . . . . . Kills . | . . . . . . . . . . . Allies Corrupted . | . . . . . . . . . . . Allies Melted . | . . . . . . . . . . . Intel | -11 -10 -10 -9 -8 -8 -7 -7 -6 -6 -6 ------- Run | Yrd Mat Min Mat Mat Sto Fac DSF Fac Was Fac Robot Analysis Total 4 | . . . . . 3 . . 1 . . Derelict Logs Recovered 1 | . . 1 . . . . . . . . Drone Launches . | . . . . . . . . . . . Drone Recoveries . | . . . . . . . . . . . Exploration | -11 -10 -10 -9 -8 -8 -7 -7 -6 -6 -6 ------------- Run | Yrd Mat Min Mat Mat Sto Fac DSF Fac Was Fac Turns Passed 3204 | 89 230 108 584 253 827 66 105 449 81 412 Spaces Moved 1828 | 48 95 56 223 108 231 39 111 384 158 375 Core 486 | 17 . . . . 69 39 111 89 139 22 Treads 675 | 31 95 56 223 108 162 . . . . . Legs 295 | . . . . . . . . 295 . . Wheels . | . . . . . . . . . . . Hover . | . . . . . . . . . . . Flight 372 | . . . . . . . . . 19 353 Fastest Speed 40 | 50 160 160 160 160 50 50 50 50 40 40 Average Speed 120 | 123 160 160 160 160 245 158 90 106 48 40 Slowest Speed 450 | 160 160 160 160 160 450 300 300 120 50 50 Overloaded Moves . | . . . . . . . . . . . Propulsion Burnouts . | . . . . . . . . . . . Robots Hopped 2 | . . . . . . . . . . 2 Cave-ins Triggered . | . . . . . . . . . . . Exploration Rate (%) 26 | 3 17 10 23 10 47 1 89 11 73 10 Regions Visited 10 Branch Regions 2 Pre-discovered Areas 1 | . . 1 . . . . . . . . Known Exits Taken 1 | . . . . . . 1 . . . . Unknown Exits Taken 6 | 1 1 1 1 1 1 . . . . . Scrap Searched . | . . . . . . . . . . . Spaces Dug . | . . . . . . . . . . . Terrain Destroyed 31 | . . . . . 31 . . . . . Melee . | . . . . . . . . . . . Projectile 15 | . . . . . 15 . . . . . AOE 16 | . . . . . 16 . . . . . Terrain Rammed . | . . . . . . . . . . . Walls Destroyed . | . . . . . . . . . . . Machines Disabled . | . . . . . . . . . . . Actions | -11 -10 -10 -9 -8 -8 -7 -7 -6 -6 -6 --------- Run | Yrd Mat Min Mat Mat Sto Fac DSF Fac Was Fac Total 2492 | 66 134 72 363 144 341 44 114 421 161 632 Wait 382 | . 4 . 84 11 17 . . 19 . 247 Move 1815 | 47 94 55 222 107 230 38 110 384 157 371 Hop 2 | . . . . . . . . . . 2 Pick Up 56 | 6 11 5 4 2 11 . 4 5 2 6 Fast Attach 11 | 2 . . . . 3 1 . 3 . 2 Attach 39 | 5 . 1 2 2 11 5 . 7 2 4 Detach . | . . . . . . . . . . . Swap 11 | . 1 2 5 2 1 . . . . . Drop 20 | . 3 6 6 2 3 . . . . . Fire 147 | 5 21 2 40 18 59 . . 2 . . Melee 5 | . . . . . 5 . . . . . Ram 1 | . . . . . 1 . . . . . Kick 1 | . . . . . . . . 1 . . Crush 2 | 1 . 1 . . . . . . . . Escape Stasis . | . . . . . . . . . . . Rewire . | . . . . . . . . . . . Trap . | . . . . . . . . . . . Miscellaneous . | . . . . . . . . . . . Route ------- -11/Scrapyard -10/Materials (discovered 2 exits: [*Min x2]) -10/Mines -9/Materials -8/Materials -8/Storage -7/Factory -7/DSF -6/Factory -6/Waste -6/Factory History --------- Turn | Location | Event 7 | -11/Scrapyard | Discovered new exit (range 16) 90 | -11/Scrapyard | Entered Materials 124 | -10/Materials | Discovered new exit (range 20) 304 | -10/Materials | Build established: Mutant 304 | -10/Materials | Discovered new exit (range 16) 320 | -10/Materials | Entered Mines 325 | -10/Mines | Joined a pair of Derelicts in attacking an 0b10 outpost 361 | -10/Mines | Learned location of Storage (-8) 391 | -10/Mines | Found a damaged Exp. Sensor Array with a note attached 395 | -10/Mines | Found Prototype Device 405 | -10/Mines | Discovered new exit (range 14) 428 | -10/Mines | Entered Materials 428 | -9/Materials | Evolved 2 slots: Utility x1, Weapon x1 718 | -9/Materials | Build established: Scavenger-Tank 985 | -9/Materials | Discovered new exit (range 11) 1012 | -9/Materials | Entered another Materials area 1012 | -8/Materials | Evolved 2 slots: Utility x1, Weapon x1 1038 | -8/Materials | Discovered new exit (range 16) 1265 | -8/Materials | Entered Storage 1369 | -8/Storage | Lost 4 parts (2u2w) 1521 | -8/Storage | Lost 5 parts (2n3w) 2008 | -8/Storage | Met a pair of Derelict thieves 2056 | -8/Storage | Core integrity fell below 50% 2076 | -8/Storage | Core integrity fell below 20% 2080 | -8/Storage | Released all parts (5) 2085 | -8/Storage | Discovered new exit (range 15) 2092 | -8/Storage | Entered Factory 2092 | -7/Factory | Evolved 2 slots: Utility x1, Weapon x1 2096 | -7/Factory | Identified exit to DSF 2108 | -7/Factory | Lost 6 parts (1p1n1u3w) 2108 | -7/Factory | Identified Exp. Sensor Array 2158 | -7/Factory | Entered DSF 2204 | -7/DSF | Discovered new exit (range 19) 2216 | -7/DSF | Released all parts (5) 2219 | -7/DSF | Additional patrols routed to DSF 2225 | -7/DSF | Build established: Mutant 2263 | -7/DSF | Entered Factory 2263 | -6/Factory | Evolved 2 slots: Propulsion x1, Utility x1 2672 | -6/Factory | Spotted B-75 Beast 2711 | -6/Factory | Core integrity fell below 50% 2712 | -6/Factory | Sucked down chute 2712 | -6/Factory | Entered Waste 2722 | -6/Waste | Spotted C-40 Crusher 2724 | -6/Waste | Spotted C-40 Crusher 2730 | -6/Waste | Crushed by Compactor (1 part destroyed, 2 dropped) 2745 | -6/Waste | Crushed by Compactor (1 part destroyed, 1 dropped) 2749 | -6/Waste | Spotted C-40 Crusher 2764 | -6/Waste | Spotted C-40 Crusher 2770 | -6/Waste | Spotted C-40 Crusher 2776 | -6/Waste | Lost 4 parts (2n2u) 2786 | -6/Waste | Discovered new exit (range 11) 2793 | -6/Waste | Entered Factory 3170 | -6/Factory | Spotted B-75 Beast 3171 | -6/Factory | Core integrity fell below 20% 3205 | -6/Factory | Destroyed by B-75 Beast with Heavy Plasma Cannon Last Messages --------------- 03066_ System corrupted: Matter fused (-5). 03067_ K-01 Serf collects debris. 03103_ System corrupted: Substantial component data lost. 03103_ K-01 Serf collects debris. 03114_ ALERT: All DSF locations entering lockdown mode. 03115_ K-01 Serf collects debris. 03124_ Critical hit (Burn: +37). 03163_ K-01 Serf cleans the Pressure Siphon. 03166_ W-25 Informer sends out distress signal. 03176_ Acquired Remote Datajack. 03180_ System corrupted: IFF burst signal emitted. 03189_ Pressure Siphon disabled. 03194_ Xenon Bombardment Thruster destroyed. 03197_ Acquired Cloaking Device. 03199_ Fabricator disabled. 03199_ Acquired Cloaking Device. 03199_ U-05 Engineer builds a Wall. Map ----- +----------------------------------------------------+ | ??????????????????????????????? | | ??????????????????????????????? | | ??????????????????????????????? | | ??????????????????????????????? | | ??????????????????????????????? | | ??????????????????????????????? | | ??????????????????????????????? | | ??????????????????????????????? | | ??????????????????????????????? | | ??????????????????????????????? | | ????? R ??????????????????????? | | ????? ??????????????????????? | | ???? ??????????????????????? | | ????# ??????????????????????? | | ????# ??????????????????????? | | ????# #?????????????????????? | | ????# ????#+###?????????????? | | ????# #### ????????????? | | ????# ????????????? | | ????# ?????????????? | | ????# "" " #??????????????? | | ????# "F " ##########?????? | | ????# """ " # #?????? | | ??### " " # """" #?????? | | ??# " # """" #?????? | | ??# !@ " ## """" #?????? | | ???#;!! " ## """" #?????? | | ???##!!! " ## """" #?????? | | ????# g"u ## """" #?????? | | ????# BB ## """" #?????? | | ????# % BB g ## #?????? | | ????# ####+###########+ | | ????# | | ????# | | ????####+## | | ??????? # | | ??????? # "%"% """" """" | | ?????? # ""%" """" """" | | ?????? # """" """" """" | | ????? # | | ????? # | | ???? # ! | | ???? # ### | | ??? # #?? | | ??? # ### ### #?? | | ??######### #?# #?# #?? | | ?????????? #?#+#?### #?? | | ?????????? #???????# #?? | | ????????? ????????+ #?? | | ??????????####????????# #?? | +----------------------------------------------------+ Best States ------------- Heat Dissipation 37 Energy Generation 14 Energy Capacity 280 Matter Stores 300 Matter Capacity 300 Sight Range 20 Robot Scan Range 20 Terrain Scan Density 10 Cloak Strength 3 Armor Coverage 300 Evasion (%) 62 Targeting Accuracy 11 Recoil Reduction 2 Offensive Hacking 40 Item Schematics ----------------- Imp. Sensor Array | -9/Materials | Scanalyzed Robot Schematics ------------------ None Fabricated ------------ Nothing Alien Tech Used ----------------- None Achievements -------------- Novice Programmer Challenges ------------ None Game ------ Seed SupersonicConstructClaws Manual? 0 Play Time 00:35:24 Cumulative 23.4 hours Start 2024.10.18 @ 18:48:39 End 2024.10.18 @ 19:26:23 Sessions 1 Manual Loads 0 Difficulty Rogue Special Mode None Game No. 55 Rogue 55 Adventurer 0 Explorer 0 Win Type - Total 0 Types 0/0/0/0/0/0/0/0/0 Lore% 17 Gallery% 22 Achievement% 23 Wizard Run 0 Options --------- Layout 1 ASCII 0 Keyboard 0 Movement Mouse Keybinds 0 Fullscreen 2 Font 24/Smallcaps Map View 50x35 Zoom Use 0% Tactical HUD 1 Map Filters NONE Filters NONE Steam 1 RUN: 8be59e01-c83d-4145-abdc-7f93c09e427f